bitfinex-derivatives/quotes_BTCF0:USTF0_20250517
["timestamp","ask_amount","ask_price","bid_price","bid_amount"]
[1747518713337,0.4416185,103360.0,103350.0,0.62447946]
[1747518713837,0.4416185,103360.0,103350.0,0.43104216]
[1747518714137,0.4416185,103360.0,103350.0,0.62447956]
[1747518716542,0.4416185,103360.0,103350.0,0.67352588]
[1747518718440,0.4416185,103360.0,103350.0,0.48008848]
[1747518718839,0.4749185,103360.0,103350.0,0.48008848]
[1747518721039,0.4749185,103360.0,103350.0,0.08718848]
[1747518722644,0.4749185,103360.0,103350.0,0.05448848]
[1747518722836,0.4749185,103360.0,103350.0,0.08988848]
[1747518724137,0.4749185,103360.0,103350.0,0.04084216]
[1747518726747,0.4849185,103360.0,103350.0,0.04084216]
[1747518729147,0.4416185,103360.0,103350.0,0.26957956]
[1747518743556,0.4416185,103360.0,103350.0,0.31862588]
[1747518743757,0.4416185,103360.0,103350.0,0.12518848]
[1747518743953,0.4416185,103360.0,103350.0,0.31862578]
[1747518744156,0.4416185,103360.0,103350.0,0.12518848]
[1747518744763,0.4747185,103360.0,103350.0,0.12518848]
[1747518745663,0.4747185,103360.0,103350.0,0.11974632]
[1747518745963,0.4747185,103360.0,103350.0,0.08444632]
[1747518746664,0.4747185,103360.0,103350.0,0.08988848]
[1747518748364,0.4747185,103360.0,103350.0,0.05448848]
[1747518748560,0.59663197,103360.0,103350.0,0.05448848]
[1747518748762,1.51609744,103360.0,103350.0,0.05448848]
[1747518749265,1.69609744,103360.0,103350.0,0.05448848]
[1747518749661,1.69609744,103360.0,103350.0,0.00544216]
[1747518750666,0.1934374,103350.0,103340.0,0.04904632]
[1747518750964,1.36535077,103350.0,103340.0,0.04904632]
[1747518751168,1.54535077,103350.0,103340.0,0.04904632]
[1747518751666,1.18455077,103350.0,103340.0,0.04904632]
[1747518751864,1.54535077,103350.0,103340.0,0.05004632]
[1747518752566,1.54535077,103350.0,103340.0,0.05104632]
[1747518753070,1.53675077,103350.0,103340.0,0.05104632]
[1747518754271,1.14655546,103350.0,103340.0,0.05104632]
[1747518754472,1.50735546,103350.0,103340.0,0.05104632]
[1747518754769,1.50735546,103350.0,103340.0,0.05648848]
[1747518756070,1.50735546,103350.0,103340.0,0.00744216]
[1747518757775,1.50735546,103350.0,103340.0,0.00644216]
[1747518757970,1.50935546,103350.0,103340.0,0.00644216]
[1747518758275,1.50935546,103350.0,103340.0,0.00544216]
[1747518760972,0.1934748,103330.0,103320.0,0.05049815]
[1747518761172,1.28830817,103330.0,103320.0,0.05049815]
[1747518761476,1.32130817,103330.0,103320.0,0.05049815]
[1747518761767,1.32130817,103330.0,103320.0,0.04904632]
[1747518761966,0.3734934,103320.0,103310.0,3e-08]
[1747518762167,1.83700034,103320.0,103310.0,3e-08]
[1747518762473,1.93379234,103320.0,103310.0,3e-08]
[1747518763267,1.69171234,103320.0,103310.0,3e-08]
[1747518763571,2.11379234,103320.0,103310.0,3e-08]
[1747518763875,2.11579234,103320.0,103310.0,3e-08]
[1747518764068,2.11779234,103320.0,103310.0,3e-08]
[1747518765177,2.14939234,103320.0,103310.0,3e-08]
[1747518765883,2.15913653,103320.0,103310.0,3e-08]
[1747518766479,2.17397235,103320.0,103310.0,3e-08]
[1747518766871,0.193531,103300.0,103290.0,0.033]
[1747518767075,1.09836447,103300.0,103290.0,0.246]
[1747518767370,1.16556447,103300.0,103290.0,0.246]
[1747518768083,1.16556447,103300.0,103290.0,0.068]
[1747518769273,0.1935251,103310.0,103290.0,0.5255675]
[1747518769274,0.356143,103310.0,103290.0,0.5255675]
[1747518769579,0.44550527,103310.0,103300.0,0.2903309]
[1747518769770,0.3235918,103310.0,103300.0,0.2903309]
[1747518770172,0.2902918,103310.0,103300.0,0.4703309]
[1747518771177,0.3234918,103310.0,103300.0,0.4703309]
[1747518773781,0.3334918,103310.0,103300.0,0.4703309]
[1747518776180,0.3002918,103310.0,103300.0,0.4703309]
[1747518777075,0.3324918,103310.0,103300.0,0.4703309]
[1747518778684,0.3224918,103310.0,103300.0,0.4703309]
[1747518781591,0.3224918,103310.0,103300.0,0.2768]
[1747518785095,0.3224918,103310.0,103300.0,0.28224216]
[1747518788401,0.5024917,103310.0,103300.0,0.28224216]
[1747518788602,0.8632917,103310.0,103300.0,0.28224216]
[1747518789299,0.6832918,103310.0,103300.0,0.28224216]
[1747518789496,0.99520517,103310.0,103300.0,0.28224216]
[1747518789698,1.02630517,103310.0,103300.0,0.28224216]
[1747518795906,1.06050517,103310.0,103300.0,0.28224216]
[1747518797808,0.69970517,103310.0,103300.0,0.28224216]
[1747518798007,1.06050517,103310.0,103300.0,0.28224216]
[1747518798199,0.69970517,103310.0,103300.0,0.28224216]
[1747518798405,1.06050517,103310.0,103300.0,0.28224216]
[1747518798705,0.9385917,103310.0,103300.0,0.28224216]
[1747518799013,1.06050517,103310.0,103300.0,0.28224216]
[1747518800509,0.8732917,103310.0,103300.0,0.47577306]
[1747518800811,0.8732917,103310.0,103300.0,0.28224216]
[1747518801517,1.05569639,103310.0,103300.0,0.28224216]
[1747518802013,1.05569639,103310.0,103300.0,0.47577316]
[1747518804018,0.69489639,103310.0,103300.0,0.47577316]
[1747518804220,1.05569639,103310.0,103300.0,0.47577316]
[1747518807116,0.69489639,103310.0,103300.0,0.47577316]
[1747518807316,1.05569639,103310.0,103300.0,0.47577316]
[1747518807516,1.02389639,103310.0,103300.0,0.47577316]
[1747518807705,1.05559639,103310.0,103300.0,0.28224216]
[1747518808013,1.17750986,103310.0,103300.0,0.28224216]
[1747518808909,1.54750986,103310.0,103300.0,0.18544216]
[1747518809226,1.54750986,103310.0,103300.0,0.00544216]
[1747518818120,1.54750986,103310.0,103300.0,0.03734216]
[1747518819323,1.60775173,103310.0,103300.0,0.03734216]
[1747518821524,1.96855173,103310.0,103300.0,0.03734216]
[1747518824822,2.17895173,103310.0,103300.0,0.03734216]
[1747518825222,2.17895173,103310.0,103300.0,0.07174216]
[1747518829925,1.81815173,103310.0,103300.0,0.07174216]
[1747518839538,1.25629183,103310.0,103300.0,0.07174216]
[1747518840736,1.60629183,103310.0,103300.0,0.07174216]
[1747518842040,1.81677183,103310.0,103300.0,0.07174216]
[1747518845234,1.85077183,103310.0,103300.0,0.07174216]
[1747518847543,1.49077183,103310.0,103300.0,0.07174216]
[1747518847735,1.78077183,103310.0,103300.0,0.07174216]
[1747518849443,1.96077173,103310.0,103300.0,0.07174216]
[1747518852747,1.31425836,103310.0,103300.0,0.07174216]
[1747518853735,1.43845836,103310.0,103300.0,0.07174216]
[1747518858556,1.43841836,103310.0,103300.0,0.07174216]
[1747518859057,1.56033183,103310.0,103300.0,0.07174216]
[1747518859751,1.34948527,103310.0,103300.0,0.07174216]
[1747518862360,1.52948517,103310.0,103300.0,0.07174216]
[1747518863161,1.16868517,103310.0,103300.0,0.07174216]
[1747518863362,1.52948517,103310.0,103300.0,0.07174216]
[1747518867662,1.1975717,103310.0,103300.0,0.07174216]
[1747518867862,1.52936517,103310.0,103300.0,0.07174216]
[1747518868369,1.4074517,103310.0,103300.0,0.07174216]
[1747518869962,1.1975717,103310.0,103300.0,0.07174216]
[1747518870167,0.3021999,103310.0,103300.0,0.44527316]
[1747518870364,0.1222,103310.0,103300.0,0.56718663]
[1747518870557,0.002,103320.0,103310.0,0.1935123]
[1747518870760,0.002,103320.0,103310.0,0.97960577]
[1747518871161,0.002,103320.0,103310.0,1.25639777]
[1747518871358,0.1954935,103320.0,103310.0,1.25639777]
[1747518871771,0.1954935,103320.0,103310.0,1.25939777]
[1747518872169,0.1954935,103320.0,103310.0,1.26239777]
[1747518874273,0.1954935,103320.0,103310.0,1.34860302]
[1747518874766,0.1954935,103320.0,103310.0,1.35835973]
[1747518875272,0.1954935,103320.0,103310.0,1.36380189]
[1747518876665,0.1954935,103320.0,103310.0,1.26700989]
[1747518878778,0.2273935,103320.0,103310.0,1.26700989]
[1747518879271,0.2273935,103320.0,103310.0,1.18080464]
[1747518879472,0.0339,103320.0,103310.0,1.18080464]
[1747518879672,0.2273935,103320.0,103310.0,1.18080464]
[1747518882781,0.2273935,103320.0,103310.0,0.97072464]
[1747518883074,0.4376934,103320.0,103310.0,1.18036464]
[1747518883280,0.4677934,103320.0,103310.0,1.18036464]
[1747518883474,0.4677934,103320.0,103310.0,0.81956464]
[1747518883674,0.4677934,103320.0,103310.0,1.05845117]
[1747518884072,0.4677934,103320.0,103310.0,0.37144216]
[1747518884272,0.91970687,103320.0,103310.0,0.19144216]
[1747518884581,1.49010687,103320.0,103310.0,0.19144216]
[1747518884879,1.69974687,103320.0,103310.0,0.18944216]
[1747518885077,1.69974687,103320.0,103310.0,0.00944216]
[1747518885281,1.82166034,103320.0,103310.0,0.00944216]
[1747518885467,0.1935122,103310.0,103300.0,0.03687428]
[1747518885667,1.24038341,103310.0,103300.0,0.03687428]
[1747518887182,1.33718341,103310.0,103300.0,0.03687428]
[1747518888184,1.51718341,103310.0,103300.0,0.03687428]
[1747518888384,1.51818341,103310.0,103300.0,0.03687428]
[1747518888684,0.1935309,103300.0,103290.0,0.1935488]
[1747518888876,1.69978211,103300.0,103290.0,0.1935488]
[1747518889078,0.1935497,103290.0,103280.0,0.04569476]
[1747518889380,0.42670744,103290.0,103280.0,0.04569476]
[1747518890080,0.42670744,103290.0,103280.0,0.04669476]
[1747518890278,0.42670744,103290.0,103280.0,0.24026326]
[1747518890679,0.42670744,103290.0,103280.0,0.27326326]
[1747518890881,0.90942091,103290.0,103280.0,0.0321]
[1747518891478,0.78750744,103290.0,103280.0,0.2246685]
[1747518891778,0.42770744,103290.0,103280.0,0.0311]
[1747518892084,0.42870744,103290.0,103280.0,0.0311]
[1747518892292,0.78950744,103290.0,103280.0,0.0311]
[1747518896688,0.78950744,103290.0,103280.0,0.2246684]
[1747518896890,0.42870744,103290.0,103280.0,0.70738187]
[1747518897088,0.42870744,103290.0,103280.0,0.91798187]
[1747518897792,0.034,103290.0,103280.0,0.91798187]
[1747518898087,0.2255497,103290.0,103280.0,0.91898187]
[1747518898590,0.032,103290.0,103280.0,0.91898187]
[1747518898791,0.34381206,103300.0,103290.0,0.1935497]
[1747518898992,0.37461206,103300.0,103290.0,0.77356317]
[1747518899189,0.37461206,103300.0,103290.0,0.95356317]
[1747518899384,0.224331,103300.0,103290.0,0.95356317]
[1747518901893,0.224331,103300.0,103290.0,0.95456317]
[1747518904596,0.224331,103300.0,103290.0,0.96000533]
[1747518908395,0.39488874,103300.0,103290.0,0.96000533]
[1747518909299,0.39488874,103300.0,103290.0,0.59920533]
[1747518909490,0.39488874,103300.0,103290.0,0.96000533]
[1747518914001,0.39488874,103300.0,103290.0,0.83809186]
[1747518914197,0.39488874,103300.0,103290.0,0.96000533]
[1747518916098,0.39488874,103300.0,103290.0,0.83809186]
[1747518917000,0.42658874,103300.0,103290.0,0.83809186]
[1747518919199,0.42658874,103300.0,103290.0,0.51416614]
[1747518919712,0.42658874,103300.0,103290.0,0.87496614]
[1747518920401,0.42658874,103300.0,103290.0,0.51416614]
[1747518927101,0.42658874,103300.0,103290.0,0.33416614]
[1747518928103,0.43658874,103300.0,103290.0,0.33416614]
[1747518933613,0.5868698,103300.0,103290.0,0.34662283]
[1747518939006,0.40631206,103300.0,103290.0,0.08877313]
[1747518939214,1.2876698,103300.0,103290.0,0.24932283]
[1747518939414,0.9376698,103300.0,103290.0,0.05577313]
[1747518939616,1.37958327,103300.0,103290.0,0.05577313]
[1747518940116,1.55958327,103300.0,103290.0,0.05577313]
[1747518940514,1.76862327,103300.0,103290.0,0.05577313]
[1747518942018,1.55958327,103300.0,103290.0,0.05577313]
[1747518942222,1.97766327,103300.0,103290.0,0.05577313]
[1747518942817,1.97766327,103300.0,103290.0,0.04347217]
[1747518943217,1.66766327,103300.0,103290.0,0.04347217]
[1747518943721,2.02766327,103300.0,103290.0,0.04347217]
[1747518947821,2.02966327,103300.0,103290.0,0.04247217]
[1747518948412,2.02966327,103300.0,103290.0,0.00544216]
[1747518948925,2.03266327,103300.0,103290.0,0.00544216]
[1747518949921,2.15457674,103300.0,103290.0,0.00544216]
[1747518950723,2.00429568,103300.0,103290.0,0.00544216]
[1747518951118,0.1935497,103290.0,103280.0,0.03703001]
[1747518951318,1.32232091,103290.0,103280.0,0.03703001]
[1747518952116,1.50232091,103290.0,103280.0,0.03703001]
[1747518952422,1.50332091,103290.0,103280.0,0.03703001]
[1747518952622,1.50432091,103290.0,103280.0,0.03703001]
[1747518954527,0.1935684,103280.0,103270.0,0.07006659]
[1747518954726,1.70887961,103280.0,103270.0,0.07006659]
[1747518955826,1.70887961,103280.0,103270.0,0.07106659]
[1747518957728,1.85940294,103280.0,103270.0,0.07106659]
[1747518958831,1.85940294,103280.0,103270.0,0.10336659]
[1747518959333,1.85940294,103280.0,103270.0,0.06633658]
[1747518961835,1.74710527,103280.0,103270.0,0.06633658]
[1747518962027,1.86901874,103280.0,103270.0,0.06633658]
[1747518964534,1.86901874,103280.0,103270.0,0.07177874]
[1747518966235,1.50821874,103280.0,103270.0,0.07177874]
[1747518966438,1.86901874,103280.0,103270.0,0.07177874]
[1747518969544,1.52889874,103280.0,103270.0,0.07177874]
[1747518969734,1.73736947,103280.0,103270.0,0.07177874]
[1747518970036,1.85928294,103280.0,103270.0,0.07177874]
[1747518972738,1.73736947,103280.0,103270.0,0.07177874]
[1747518972941,1.85928294,103280.0,103270.0,0.07177874]
[1747518976539,1.65044294,103280.0,103270.0,0.07177874]
[1747518976746,1.47920294,103280.0,103270.0,0.07177874]
[1747518976943,0.38629173,103280.0,103270.0,0.74807941]
[1747518977242,0.15052333,103280.0,103270.0,0.92807941]
[1747518977540,0.34409173,103280.0,103270.0,0.92807941]
[1747518977749,0.15052333,103280.0,103270.0,0.92807941]
[1747518977937,0.34409173,103280.0,103270.0,1.02490741]
[1747518978137,0.48926043,103290.0,103280.0,0.1935684]
[1747518978332,0.48926043,103290.0,103280.0,0.77048187]
[1747518979247,0.48926043,103290.0,103280.0,0.95048187]
[1747518979951,0.49026043,103290.0,103280.0,0.95048187]
[1747518980144,0.49126043,103290.0,103280.0,0.95048187]
[1747518981638,0.49126043,103290.0,103280.0,0.98751188]
[1747518982141,0.44286893,103290.0,103280.0,0.98751188]
[1747518982848,0.44186893,103290.0,103280.0,0.98851188]
[1747518983550,0.44086893,103290.0,103280.0,0.98851188]
[1747518988968,0.44086893,103290.0,103280.0,0.62771188]
[1747518989261,0.44086893,103290.0,103280.0,1.19727188]
[1747518991055,0.47256893,103290.0,103280.0,1.19727188]
[1747518991263,0.47256893,103290.0,103280.0,0.98851188]
[1747518992458,0.47256893,103290.0,103280.0,0.95148187]
[1747518994858,0.3220456,103290.0,103280.0,0.95148187]
[1747518995963,0.3220456,103290.0,103280.0,0.95692403]
[1747519000361,0.49260334,103290.0,103280.0,0.95692403]
[1747519002059,0.49260334,103290.0,103280.0,0.99395404]
[1747519002859,0.3220456,103290.0,103280.0,0.99395404]
[1747519003066,0.49260334,103290.0,103280.0,0.99395404]
[1747519007769,0.49260334,103290.0,103280.0,1.04328501]
[1747519011165,0.52390334,103290.0,103280.0,1.04328501]
[1747519011463,0.52390334,103290.0,103280.0,0.68248501]
[1747519011658,0.52390334,103290.0,103280.0,1.04328501]
[1747519013069,0.52390334,103290.0,103280.0,0.68248501]
[1747519013265,0.52390334,103290.0,103280.0,1.04328501]
[1747519014161,0.52390334,103290.0,103280.0,1.006255]
[1747519019160,0.52390334,103290.0,103280.0,1.214775]
[1747519020167,0.47551204,103290.0,103280.0,1.214775]
[1747519021465,0.47551204,103290.0,103280.0,0.88434153]
[1747519021772,0.47551204,103290.0,103280.0,1.006255]
[1747519022170,0.3049543,103290.0,103280.0,0.88434153]
[1747519022357,0.50701204,103290.0,103280.0,0.82134153]
[1747519022773,0.82701204,103290.0,103280.0,0.42934153]
[1747519023273,0.82701204,103290.0,103280.0,0.24934153]
[1747519023571,0.50701204,103290.0,103280.0,0.24934153]
[1747519023970,0.62892551,103290.0,103280.0,0.24934153]
[1747519024168,1.18892551,103290.0,103280.0,0.24934153]
[1747519024573,1.60580551,103290.0,103280.0,0.24934153]
[1747519024966,1.96660551,103290.0,103280.0,0.05577313]
[1747519025161,1.78660551,103290.0,103280.0,0.05577313]
[1747519025368,1.88342551,103290.0,103280.0,0.05577313]
[1747519025570,1.78660551,103290.0,103280.0,0.05577313]
[1747519026063,2.06342551,103290.0,103280.0,0.05577313]
[1747519026573,1.96660551,103290.0,103280.0,0.05577313]
[1747519028369,1.96660551,103290.0,103280.0,0.00644216]
[1747519029276,1.96760551,103290.0,103280.0,0.00544216]
[1747519029469,1.96860551,103290.0,103280.0,0.00544216]
[1747519030978,2.31542551,103290.0,103280.0,0.00544216]
[1747519031179,0.31548187,103280.0,103270.0,0.0389498]
[1747519031483,1.44495308,103280.0,103270.0,0.0389498]
[1747519031677,1.54178108,103280.0,103270.0,0.0389498]
[1747519032078,1.72178108,103280.0,103270.0,0.0389498]
[1747519032579,1.62495308,103280.0,103270.0,0.0389498]
[1747519033379,1.62495308,103280.0,103270.0,0.00193658]
[1747519039589,1.62495308,103280.0,103270.0,0.00737874]
[1747519041192,1.44495308,103280.0,103270.0,0.00737874]
[1747519041781,1.32303961,103280.0,103270.0,0.00737874]
[1747519041987,0.94303961,103280.0,103270.0,0.20096584]
[1747519042195,0.84392614,103280.0,103270.0,0.29676584]
[1747519042384,0.42732614,103280.0,103270.0,0.29676584]
[1747519042585,0.84392614,103280.0,103270.0,0.29676584]
[1747519043388,0.84392614,103280.0,103270.0,0.29676594]
[1747519043575,0.99426574,103280.0,103270.0,0.29676594]
[1747519044691,0.99426574,103280.0,103270.0,0.10317874]
[1747519046282,1.11617921,103280.0,103270.0,0.10317874]
[1747519046483,1.47697921,103280.0,103270.0,0.10317874]
[1747519046683,1.82697921,103280.0,103270.0,0.10317874]
[1747519046884,1.47697921,103280.0,103270.0,0.10317874]
[1747519049495,1.08469921,103280.0,103270.0,0.29676584]
[1747519049697,0.54626574,103280.0,103270.0,0.29676584]
[1747519049998,0.90706574,103280.0,103270.0,0.10317874]
[1747519061007,0.75672614,103280.0,103270.0,0.10317874]
[1747519063493,0.78712614,103280.0,103270.0,0.10317874]
[1747519063895,0.81752614,103280.0,103270.0,0.10317874]
[1747519064593,0.45672614,103280.0,103270.0,0.10317874]
[1747519064792,0.93943961,103280.0,103270.0,0.10317874]
[1747519064993,0.95943961,103280.0,103270.0,0.10317874]
[1747519066804,0.83752614,103280.0,103270.0,0.10317874]
[1747519066989,0.95943961,103280.0,103270.0,0.10317874]
[1747519070000,0.83752614,103280.0,103270.0,0.10317874]
[1747519075501,0.47672614,103280.0,103270.0,0.10317874]
[1747519077109,0.83752614,103280.0,103270.0,0.10317874]
[1747519077316,0.6669684,103280.0,103270.0,0.10317874]
[1747519077513,0.83752614,103280.0,103270.0,0.10317874]
[1747519077810,0.83752614,103280.0,103270.0,0.14019196]
[1747519079614,0.47672614,103280.0,103270.0,0.14019196]
[1747519079818,0.83752614,103280.0,103270.0,0.14019196]
[1747519083219,0.83752614,103280.0,103270.0,0.10317874]
[1747519089230,1.04867606,103280.0,103270.0,0.10317874]
[1747519089731,1.37867606,103280.0,103270.0,0.10317874]
[1747519093332,1.37867606,103280.0,103270.0,0.14019196]
[1747519094322,1.37867606,103280.0,103270.0,0.33377916]
[1747519098126,1.37867606,103280.0,103270.0,0.51377916]
[1747519098932,1.37867606,103280.0,103270.0,0.49747916]
[1747519099131,1.38067606,103280.0,103270.0,0.32292132]
[1747519099635,1.01987606,103280.0,103270.0,0.32292132]
[1747519099847,1.38067606,103280.0,103270.0,0.32292132]
[1747519101034,1.01987606,103280.0,103270.0,0.32292132]
[1747519101232,1.38067606,103280.0,103270.0,0.32292132]
[1747519103828,1.38067606,103280.0,103270.0,0.12933412]
[1747519104426,1.58851606,103280.0,103270.0,0.12933412]
[1747519117144,1.37736614,103280.0,103270.0,0.12933412]
[1747519118338,1.01656614,103280.0,103270.0,0.12933412]
[1747519118642,1.37736614,103280.0,103270.0,0.12933412]
[1747519120142,1.58843003,103280.0,103270.0,0.12933412]
[1747519120943,1.37736614,103280.0,103270.0,0.12933412]
[1747519122856,1.2068084,103280.0,103270.0,0.12933412]
[1747519123057,1.37736614,103280.0,103270.0,0.12933412]
[1747519124261,1.58843752,103280.0,103270.0,0.12933412]
[1747519124656,1.37736614,103280.0,103270.0,0.12933412]
[1747519125063,1.01656614,103280.0,103270.0,0.12933412]
[1747519125364,1.37736614,103280.0,103270.0,0.12933412]
[1747519127164,1.01656614,103280.0,103270.0,0.12933412]
[1747519127462,1.37736614,103280.0,103270.0,0.12933412]
[1747519128263,1.37736614,103280.0,103270.0,0.32292112]
[1747519128455,1.37736614,103280.0,103270.0,0.12933412]
[1747519128659,1.23496614,103280.0,103270.0,0.32292112]
[1747519128865,0.0338,103280.0,103270.0,0.80563459]
[1747519129264,1.10615935,103310.0,103280.0,0.048388]
[1747519129561,0.19510309,103310.0,103300.0,0.31544437]
[1747519129763,0.42011529,103310.0,103300.0,0.67624437]
[1747519130062,0.02454535,103310.0,103300.0,0.86225784]
[1747519130253,0.02454535,103310.0,103300.0,1.04225784]
[1747519130460,0.21905755,103310.0,103300.0,1.04225784]
[1747519130765,0.70249279,103310.0,103300.0,1.04225784]
[1747519131268,0.70149279,103310.0,103300.0,1.04425784]
[1747519131662,0.70049279,103310.0,103300.0,1.05402629]
[1747519132563,0.21805755,103310.0,103300.0,1.05402629]
[1747519133768,0.21805755,103310.0,103300.0,1.05602629]
[1747519137073,0.1935122,103310.0,103300.0,1.41682629]
[1747519140875,0.36406994,103310.0,103300.0,1.14163282]
[1747519141062,0.2558122,103310.0,103300.0,0.2481]
[1747519141264,0.88828341,103310.0,103300.0,0.184]
[1747519141573,0.90828341,103310.0,103300.0,0.184]
[1747519141776,1.36588341,103310.0,103300.0,0.184]
[1747519142067,1.62532567,103310.0,103300.0,0.004]
[1747519143173,0.1935309,103300.0,103290.0,0.03701322]
[1747519143380,1.5148242,103300.0,103290.0,0.03701322]
[1747519144166,1.6948242,103300.0,103290.0,0.03701322]
[1747519145179,1.81673767,103300.0,103290.0,0.03701322]
[1747519146079,1.81973767,103300.0,103290.0,0.03701322]
[1747519147279,1.63973767,103300.0,103290.0,0.03701322]
[1747519147580,1.64273767,103300.0,103290.0,0.03701322]
[1747519147882,0.1935684,103280.0,103270.0,0.91870955]
[1747519148083,0.1935684,103280.0,103270.0,1.09870955]
[1747519148377,0.2562684,103280.0,103270.0,1.09870955]
[1747519151280,0.2562684,103280.0,103270.0,0.73790955]
[1747519151481,0.2562684,103280.0,103270.0,1.09870955]
[1747519152490,0.4333005,103300.0,103290.0,0.1935497]
[1747519152676,0.0626,103300.0,103290.0,0.67626317]
[1747519152879,0.39222225,103310.0,103300.0,0.19897306]
[1747519153075,0.39222225,103310.0,103300.0,0.40907306]
[1747519153279,0.42262225,103310.0,103300.0,0.76987306]
[1747519153778,0.45492225,103310.0,103300.0,0.80217306]
[1747519155781,0.3046035,103310.0,103300.0,0.44137306]
[1747519155978,0.3046035,103310.0,103300.0,0.80217306]
[1747519157379,0.2562245,103310.0,103300.0,0.80217306]
[1747519157585,0.2258245,103310.0,103300.0,0.80217306]
[1747519157787,0.2258245,103310.0,103300.0,0.92408653]
[1747519158185,0.2258245,103310.0,103300.0,0.74408653]
[1747519159190,0.2258245,103310.0,103300.0,0.93398772]
[1747519159691,0.2258245,103310.0,103300.0,0.92408653]
[1747519160987,0.2458245,103310.0,103300.0,0.80217306]
[1747519161189,0.2458245,103310.0,103300.0,0.92408653]
[1747519161385,0.2771245,103310.0,103300.0,0.92408653]
[1747519162392,0.2571245,103310.0,103300.0,0.92408653]
[1747519162988,0.2258245,103310.0,103300.0,0.92408653]
[1747519166398,0.5358245,103310.0,103300.0,0.92408653]
[1747519171801,0.5358245,103310.0,103300.0,0.56328653]
[1747519172096,0.5358245,103310.0,103300.0,0.92408653]
[1747519182100,0.5358245,103310.0,103300.0,0.96109975]
[1747519185606,0.5358245,103310.0,103300.0,0.83918628]
[1747519185807,0.5358245,103310.0,103300.0,0.96109975]
[1747519186507,0.5672245,103310.0,103300.0,0.96109975]
[1747519189101,0.5672245,103310.0,103300.0,0.60029975]
[1747519189305,0.5672245,103310.0,103300.0,0.9734175]
[1747519191599,0.71754325,103310.0,103300.0,0.9734175]
[1747519193408,0.71754325,103310.0,103300.0,0.6126175]
[1747519193617,0.71754325,103310.0,103300.0,0.9734175]
[1747519194497,0.71754325,103310.0,103300.0,0.6126175]
[1747519194694,0.71754325,103310.0,103300.0,0.9734175]
[1747519200307,0.71754325,103310.0,103300.0,0.23477313]
[1747519200308,0.83945672,103310.0,103300.0,0.23477313]
[1747519200503,1.20025672,103310.0,103300.0,0.23477313]
[1747519200709,0.8085941,103310.0,103300.0,0.42830403]
[1747519201012,0.46668063,103310.0,103300.0,0.9110175]
[1747519201206,0.37668063,103310.0,103300.0,0.7955175]
[1747519202207,0.37668063,103310.0,103300.0,0.9755175]
[1747519202408,0.37668063,103310.0,103300.0,0.85360403]
[1747519202802,0.37668063,103310.0,103300.0,0.84130894]
[1747519204912,0.63668063,103310.0,103300.0,0.84130894]
[1747519205111,0.63668063,103310.0,103300.0,0.66130894]
[1747519208317,0.63668063,103310.0,103300.0,0.67360403]
[1747519210504,0.63668063,103310.0,103300.0,0.64190403]
[1747519210714,0.63668063,103310.0,103300.0,0.67420403]
[1747519213615,0.63668063,103310.0,103300.0,0.31340403]
[1747519213919,0.63668063,103310.0,103300.0,0.67420403]
[1747519214219,0.63668063,103310.0,103300.0,0.85420403]
[1747519215224,0.63668063,103310.0,103300.0,0.67420403]
[1747519217415,0.37668063,103310.0,103300.0,0.67420403]
[1747519217620,0.39668063,103310.0,103300.0,0.67420403]
[1747519217825,0.39668063,103310.0,103300.0,0.31340403]
[1747519218121,0.39668063,103310.0,103300.0,0.67420403]
[1747519221018,0.39668063,103310.0,103300.0,0.66188834]
[1747519222825,0.39668063,103310.0,103300.0,0.30108834]
[1747519223024,0.39668063,103310.0,103300.0,0.66188834]
[1747519223423,0.39668063,103310.0,103300.0,0.30108834]
[1747519223722,0.39668063,103310.0,103300.0,0.66188834]
[1747519224619,0.39668063,103310.0,103300.0,0.30108834]
[1747519224825,0.39668063,103310.0,103300.0,0.66188834]
[1747519229029,0.42998063,103310.0,103300.0,0.69218834]
[1747519232227,0.42998063,103310.0,103300.0,0.33138834]
[1747519232427,0.42998063,103310.0,103300.0,0.69218834]
[1747519235130,0.42998063,103310.0,103300.0,0.87218834]
[1747519235335,0.64042689,103310.0,103300.0,0.87218834]
[1747519236128,0.64042689,103310.0,103300.0,0.70450403]
[1747519236827,0.57572689,103310.0,103300.0,0.70450403]
[1747519239132,0.57572689,103310.0,103300.0,0.88450403]
[1747519241339,0.57572689,103310.0,103300.0,0.70450403]
[1747519242238,0.57572689,103310.0,103300.0,0.88450403]
[1747519243238,0.57572689,103310.0,103300.0,0.34370403]
[1747519243438,0.57572689,103310.0,103300.0,0.70450403]
[1747519246344,0.57572689,103310.0,103300.0,0.74153787]
[1747519248147,0.57572689,103310.0,103300.0,0.92153787]
[1747519250252,0.57572689,103310.0,103300.0,0.74153787]
[1747519253353,0.57572689,103310.0,103300.0,0.38073787]
[1747519253651,0.57572689,103310.0,103300.0,0.74153787]
[1747519254447,0.60842689,103310.0,103300.0,0.74153787]
[1747519255755,0.64042689,103310.0,103300.0,0.74153787]
[1747519257358,0.64042689,103310.0,103300.0,0.38073787]
[1747519257956,0.64042689,103310.0,103300.0,0.74153787]
[1747519260953,0.64042689,103310.0,103300.0,0.38073787]
[1747519261256,0.64042689,103310.0,103300.0,0.74153787]
[1747519262156,0.64042689,103310.0,103300.0,0.54800697]
[1747519262360,1.08234036,103310.0,103300.0,0.12460697]
[1747519262555,1.44314036,103310.0,103300.0,0.12460697]
[1747519262958,1.48314036,103310.0,103300.0,0.09180697]
[1747519263456,1.70185383,103310.0,103300.0,0.09180697]
[1747519263662,1.57994036,103310.0,103300.0,0.09180697]
[1747519264058,1.75994036,103310.0,103300.0,0.09180697]
[1747519264459,1.88185383,103310.0,103300.0,0.09180697]
[1747519265559,1.88185383,103310.0,103300.0,0.02513264]
[1747519265861,1.88185383,103310.0,103300.0,4e-08]
[1747519266061,1.88485383,103310.0,103300.0,4e-08]
[1747519266253,2.13485383,103310.0,103300.0,4e-08]
[1747519266453,0.193531,103300.0,103290.0,0.06159675]
[1747519266650,1.62667794,103300.0,103290.0,0.06159675]
[1747519266856,1.9339362,103300.0,103290.0,0.06159675]
[1747519267266,2.1139362,103300.0,103290.0,0.06159675]
[1747519267765,0.1935685,103280.0,103270.0,0.17103203]
[1747519267950,0.31548197,103280.0,103270.0,0.17103203]
[1747519268151,0.41893976,103280.0,103270.0,0.17103203]
[1747519268355,1.06740197,103280.0,103270.0,0.10803203]
[1747519268561,1.33740197,103280.0,103270.0,0.10803203]
[1747519268851,1.50428197,103280.0,103270.0,0.07693203]
[1747519269054,1.50428197,103280.0,103270.0,0.00338907]
[1747519269366,1.62619544,103280.0,103270.0,0.00393658]
[1747519269760,1.62619544,103280.0,103270.0,0.00593658]
[1747519270167,1.80619544,103280.0,103270.0,0.00593658]
[1747519270364,0.1935872,103270.0,103260.0,0.0616682]
[1747519270667,1.09320067,103270.0,103260.0,0.0616682]
[1747519273068,1.09320067,103270.0,103260.0,0.0646682]
[1747519273567,1.24351942,103270.0,103260.0,0.0646682]
[1747519274870,1.24351942,103270.0,103260.0,0.003]
[1747519276270,1.24351942,103270.0,103260.0,0.0356]
[1747519279772,1.24351942,103270.0,103260.0,0.04104216]
[1747519280664,1.45111942,103270.0,103260.0,0.04104216]